[Event "*** SCC Grand Prix: Titled Tuesday Blitz"]
[Site "Chess.com"]
[Date "2020.06.09"]
[Round "3"]
[White "margarita_2703"]
[Black "exoticprincess"]
[Result "0-1"]
[WhiteElo "2422"]
[BlackElo "2789"]
[TimeControl "180+1"]
[EndTime "9:28:31 PDT"]
[Termination "exoticprincess won by resignation"]

1. Nf3 {[%clk 0:03:00.9]} 1... d5 {[%clk 0:02:57.3]} 2. d4 {[%clk 0:02:59.8]}
2... c6 {[%clk 0:02:55.6]} 3. c4 {[%clk 0:02:59.5]} 3... Nf6 {[%clk 0:02:55.8]}
4. Nc3 {[%clk 0:02:59.5]} 4... dxc4 {[%clk 0:02:54.8]} 5. e3 {[%clk 0:02:58.4]}
5... b5 {[%clk 0:02:51.9]} 6. a4 {[%clk 0:02:55.4]} 6... bxa4 {[%clk 0:02:52.2]}
7. Bxc4 {[%clk 0:02:52.8]} 7... e6 {[%clk 0:02:39.4]} 8. Qxa4 {[%clk 0:02:50]}
8... Be7 {[%clk 0:02:37.1]} 9. O-O {[%clk 0:02:48.3]} 9... O-O {[%clk
0:02:35.8]} 10. Ne5 {[%clk 0:02:46.2]} 10... Bb7 {[%clk 0:02:32.8]} 11. Rd1
{[%clk 0:02:41]} 11... Qc7 {[%clk 0:02:30]} 12. e4 {[%clk 0:02:33.8]} 12... Nbd7
{[%clk 0:02:25.8]} 13. Bf4 {[%clk 0:02:32.1]} 13... Nb6 {[%clk 0:02:19.2]} 14.
Qa2 {[%clk 0:02:17.6]} 14... Bd6 {[%clk 0:02:13.4]} 15. Rac1 {[%clk 0:01:38.9]}
15... h6 {[%clk 0:02:11.6]} 16. Bb3 {[%clk 0:01:35.9]} 16... Qe7 {[%clk
0:02:08.5]} 17. h3 {[%clk 0:01:27.5]} 17... a5 {[%clk 0:02:04.1]} 18. Bc2 {[%clk
0:01:20.1]} 18... Rfd8 {[%clk 0:01:57.6]} 19. Na4 {[%clk 0:01:18.7]} 19... Nxa4
{[%clk 0:01:53.2]} 20. Qxa4 {[%clk 0:01:18.5]} 20... c5 {[%clk 0:01:50.8]} 21.
dxc5 {[%clk 0:01:09.3]} 21... Bxc5 {[%clk 0:01:49.2]} 22. Rxd8+ {[%clk
0:01:08.9]} 22... Rxd8 {[%clk 0:01:47.7]} 23. Qxa5 {[%clk 0:01:02.1]} 23... Bxe4
{[%clk 0:01:34.9]} 24. Bxe4 {[%clk 0:01:01.4]} 24... Nxe4 {[%clk 0:01:21.4]} 25.
Nc6 {[%clk 0:00:55.9]} 25... Bxf2+ {[%clk 0:01:19.1]} 26. Kh1 {[%clk 0:00:45.4]}
26... Qb7 {[%clk 0:00:42.7]} 27. Qxd8+ {[%clk 0:00:41.3]} 27... Kh7 {[%clk
0:00:42.2]} 28. Qd3 {[%clk 0:00:38.3]} 28... f5 {[%clk 0:00:41]} 29. b4 {[%clk
0:00:32.8]} 29... Bc5 {[%clk 0:00:37.8]} 30. bxc5 {[%clk 0:00:30.1]} 30... Nf2+
{[%clk 0:00:35.9]} 31. Kh2 {[%clk 0:00:27.6]} 31... Nxd3 {[%clk 0:00:36.8]} 32.
Nd8 {[%clk 0:00:19.7]} 32... Qb2 {[%clk 0:00:32.8]} 33. Rf1 {[%clk 0:00:18.8]}
33... Nxf4 {[%clk 0:00:30.5]} 34. Rxf4 {[%clk 0:00:18.7]} 34... Qe5 {[%clk
0:00:30.9]} 35. g3 {[%clk 0:00:18.8]} 35... Qe2+ {[%clk 0:00:30.8]} 36. Kg1
{[%clk 0:00:18.1]} 36... Qd1+ {[%clk 0:00:31.7]} 37. Kg2 {[%clk 0:00:17.8]}
37... Qxd8 {[%clk 0:00:32.6]} 38. c6 {[%clk 0:00:17.7]} 38... Qd5+ {[%clk
0:00:32.7]} 0-1

[Event "*** SCC Grand Prix: Titled Tuesday Blitz"]
[Site "Chess.com"]
[Date "2020.06.09"]
[Round "3"]
[White "anon569"]
[Black "blitzking1729"]
[Result "0-1"]
[WhiteElo "2297"]
[BlackElo "2544"]
[TimeControl "180+1"]
[EndTime "9:28:33 PDT"]
[Termination "blitzking1729 won by resignation"]

1. e4 {[%clk 0:03:00.9]} 1... d6 {[%clk 0:02:53.7]} 2. d4 {[%clk 0:03:00]} 2...
Nf6 {[%clk 0:02:52.9]} 3. Nc3 {[%clk 0:02:59.5]} 3... e5 {[%clk 0:02:52.4]} 4.
dxe5 {[%clk 0:02:58.2]} 4... dxe5 {[%clk 0:02:52.2]} 5. Qxd8+ {[%clk 0:02:58.6]}
5... Kxd8 {[%clk 0:02:53.1]} 6. Nf3 {[%clk 0:02:58.3]} 6... Bd6 {[%clk
0:02:50.7]} 7. Bg5 {[%clk 0:02:44.6]} 7... Be6 {[%clk 0:02:47.7]} 8. O-O-O
{[%clk 0:02:42.6]} 8... Nd7 {[%clk 0:02:47.3]} 9. Nb5 {[%clk 0:02:25.9]} 9...
Ke7 {[%clk 0:02:45.9]} 10. Nxd6 {[%clk 0:02:12.4]} 10... cxd6 {[%clk 0:02:45.5]}
11. Nd2 {[%clk 0:01:46.8]} 11... h6 {[%clk 0:02:42.4]} 12. Bxf6+ {[%clk
0:01:20.9]} 12... Nxf6 {[%clk 0:02:40.3]} 13. f3 {[%clk 0:01:18.3]} 13... Rac8
{[%clk 0:02:39.5]} 14. Kb1 {[%clk 0:01:17.7]} 14... Rhd8 {[%clk 0:02:36.6]} 15.
Bd3 {[%clk 0:00:56.5]} 15... d5 {[%clk 0:02:35.2]} 16. exd5 {[%clk 0:00:55.6]}
16... Nxd5 {[%clk 0:02:34.7]} 17. Rhe1 {[%clk 0:00:50.5]} 17... f6 {[%clk
0:02:27.9]} 18. Be4 {[%clk 0:00:45.2]} 18... Nb4 {[%clk 0:02:12.6]} 19. a3
{[%clk 0:00:43.8]} 19... Nc6 {[%clk 0:02:11.6]} 20. Bxc6 {[%clk 0:00:24.9]}
20... Rxc6 {[%clk 0:02:10.3]} 21. Ne4 {[%clk 0:00:24.1]} 21... Rdc8 {[%clk
0:02:09.6]} 22. Rd2 {[%clk 0:00:21.2]} 22... b5 {[%clk 0:02:00.6]} 23. Red1
{[%clk 0:00:20.4]} 23... a5 {[%clk 0:02:00]} 24. Nc3 {[%clk 0:00:18.6]} 24...
Rb8 {[%clk 0:01:54.8]} 25. Nd5+ {[%clk 0:00:17.3]} 25... Kf7 {[%clk 0:01:53.9]}
26. Ne3 {[%clk 0:00:14]} 26... b4 {[%clk 0:01:52.9]} 27. axb4 {[%clk 0:00:14.4]}
27... axb4 {[%clk 0:01:52.4]} 28. Rd6 {[%clk 0:00:13.8]} 28... Rc7 {[%clk
0:01:52.3]} 29. Ra6 {[%clk 0:00:11.2]} 29... b3 {[%clk 0:01:46.9]} 30. cxb3
{[%clk 0:00:08.3]} 30... Rxb3 {[%clk 0:01:42.4]} 31. Rdd6 {[%clk 0:00:03.9]}
31... Rxe3 {[%clk 0:01:31.2]} 32. Rxe6 {[%clk 0:00:04]} 32... Re1+ {[%clk
0:01:30.6]} 33. Ka2 {[%clk 0:00:03.4]} 33... Re2 {[%clk 0:01:30.7]} 34. Rec6
{[%clk 0:00:03.9]} 34... Rxc6 {[%clk 0:01:28.4]} 35. Rxc6 {[%clk 0:00:03.5]}
35... Rxg2 {[%clk 0:01:28.4]} 36. Ka3 {[%clk 0:00:04]} 36... Rxh2 {[%clk
0:01:28.3]} 37. b4 {[%clk 0:00:04.6]} 37... Rh3 {[%clk 0:01:28.6]} 38. b5 {[%clk
0:00:05.2]} 38... Rxf3+ {[%clk 0:01:28.5]} 39. Ka4 {[%clk 0:00:05.6]} 39... Rf1
{[%clk 0:01:28.4]} 40. b6 {[%clk 0:00:05.7]} 40... Ra1+ {[%clk 0:01:28.2]} 41.
Kb5 {[%clk 0:00:06.3]} 41... Rb1+ {[%clk 0:01:28.4]} 42. Kc5 {[%clk 0:00:04.9]}
42... h5 {[%clk 0:01:24.8]} 43. Kd6 {[%clk 0:00:03.7]} 43... h4 {[%clk
0:01:23.6]} 44. Kc7 {[%clk 0:00:03.6]} 44... g5 {[%clk 0:01:22]} 45. b7 {[%clk
0:00:03.9]} 45... Rxb7+ {[%clk 0:01:21.8]} 46. Kxb7 {[%clk 0:00:04.4]} 46... h3
{[%clk 0:01:22.2]} 0-1

[Event "*** SCC Grand Prix: Titled Tuesday Blitz"]
[Site "Chess.com"]
[Date "2020.06.09"]
[Round "3"]
[White "CrazyMartian"]
[Black "arminmusovic"]
[Result "0-1"]
[WhiteElo "2289"]
[BlackElo "2541"]
[TimeControl "180+1"]
[EndTime "9:28:33 PDT"]
[Termination "arminmusovic won on time"]

1. d4 {[%clk 0:03:00.9]} 1... d5 {[%clk 0:03:00.2]} 2. Bf4 {[%clk 0:02:59.6]}
2... c5 {[%clk 0:03:01.1]} 3. e3 {[%clk 0:02:59.4]} 3... Nc6 {[%clk 0:03:01.1]}
4. c3 {[%clk 0:02:59.5]} 4... a6 {[%clk 0:03:00.2]} 5. Nd2 {[%clk 0:02:58.1]}
5... Nf6 {[%clk 0:02:57.1]} 6. Ngf3 {[%clk 0:02:55.9]} 6... Bg4 {[%clk
0:02:57.2]} 7. Bd3 {[%clk 0:02:43]} 7... Bh5 {[%clk 0:02:54.9]} 8. O-O {[%clk
0:02:41.7]} 8... e6 {[%clk 0:02:55.1]} 9. a3 {[%clk 0:02:38.9]} 9... Bd6 {[%clk
0:02:54.6]} 10. Bg3 {[%clk 0:02:37.7]} 10... O-O {[%clk 0:02:48.9]} 11. Re1
{[%clk 0:02:36.6]} 11... cxd4 {[%clk 0:02:48.6]} 12. exd4 {[%clk 0:02:36.1]}
12... Rc8 {[%clk 0:02:45]} 13. Qe2 {[%clk 0:02:34.1]} 13... Re8 {[%clk
0:02:44.3]} 14. Qf1 {[%clk 0:02:30.8]} 14... Bg6 {[%clk 0:02:23.8]} 15. Ne5
{[%clk 0:02:13.8]} 15... Bxe5 {[%clk 0:02:22.8]} 16. Bxe5 {[%clk 0:02:08]} 16...
Nd7 {[%clk 0:02:08.4]} 17. Bg3 {[%clk 0:02:03.7]} 17... e5 {[%clk 0:02:08.5]}
18. Bxg6 {[%clk 0:02:02.4]} 18... hxg6 {[%clk 0:02:08.4]} 19. dxe5 {[%clk
0:02:02.5]} 19... Ndxe5 {[%clk 0:02:09]} 20. Qe2 {[%clk 0:01:10.8]} 20... d4
{[%clk 0:01:59.9]} 21. Nf3 {[%clk 0:00:53.3]} 21... Nxf3+ {[%clk 0:01:57.4]} 22.
Qxf3 {[%clk 0:00:52.5]} 22... Qb6 {[%clk 0:01:51.3]} 23. b4 {[%clk 0:00:43.2]}
23... dxc3 {[%clk 0:01:46.3]} 24. Qxc3 {[%clk 0:00:41.6]} 24... Ne5 {[%clk
0:01:33.4]} 25. Qe3 {[%clk 0:00:22.1]} 25... Qxe3 {[%clk 0:01:33.1]} 26. Rxe3
{[%clk 0:00:22.6]} 26... Nc4 {[%clk 0:01:33.7]} 27. Rxe8+ {[%clk 0:00:22]} 27...
Rxe8 {[%clk 0:01:34.6]} 28. Bf4 {[%clk 0:00:16.8]} 28... f6 {[%clk 0:01:27.6]}
29. h4 {[%clk 0:00:16.4]} 29... Re2 {[%clk 0:01:23.1]} 30. g3 {[%clk 0:00:14.9]}
30... Rb2 {[%clk 0:01:18.8]} 31. Kf1 {[%clk 0:00:14.7]} 31... Rb3 {[%clk
0:01:18.7]} 32. Rc1 {[%clk 0:00:11.1]} 32... b5 {[%clk 0:01:18]} 33. Rd1 {[%clk
0:00:09.4]} 33... Rxa3 {[%clk 0:01:14.6]} 34. Rd8+ {[%clk 0:00:09.9]} 34... Kh7
{[%clk 0:01:13.1]} 35. Rd7 {[%clk 0:00:09.7]} 35... Ra4 {[%clk 0:01:03.5]} 36.
Bd6 {[%clk 0:00:09.4]} 36... Ra1+ {[%clk 0:00:49.4]} 37. Ke2 {[%clk 0:00:07.1]}
37... Ra2+ {[%clk 0:00:49.7]} 38. Ke1 {[%clk 0:00:06.9]} 38... Rd2 {[%clk
0:00:49.8]} 0-1

[Event "*** SCC Grand Prix: Titled Tuesday Blitz"]
[Site "Chess.com"]
[Date "2020.06.09"]
[Round "3"]
[White "AlexSuv"]
[Black "serhanberat_ozdemir"]
[Result "0-1"]
[WhiteElo "2710"]
[BlackElo "2474"]
[TimeControl "180+1"]
[EndTime "9:28:34 PDT"]
[Termination "serhanberat_ozdemir won by resignation"]

1. d4 {[%clk 0:03:00.9]} 1... Nf6 {[%clk 0:02:51.1]} 2. c4 {[%clk 0:02:58.3]}
2... g6 {[%clk 0:02:46.6]} 3. Nc3 {[%clk 0:02:58.4]} 3... Bg7 {[%clk 0:02:46.7]}
4. e4 {[%clk 0:02:58.5]} 4... d6 {[%clk 0:02:47.2]} 5. Nf3 {[%clk 0:02:59.1]}
5... O-O {[%clk 0:02:47.6]} 6. Be2 {[%clk 0:02:59.4]} 6... Bg4 {[%clk
0:02:48.2]} 7. O-O {[%clk 0:02:47.8]} 7... Nfd7 {[%clk 0:02:47.8]} 8. Ne1 {[%clk
0:02:32.6]} 8... Bxe2 {[%clk 0:02:42.5]} 9. Nxe2 {[%clk 0:02:32.7]} 9... c5
{[%clk 0:02:23.8]} 10. Be3 {[%clk 0:02:27]} 10... cxd4 {[%clk 0:02:11.9]} 11.
Nxd4 {[%clk 0:02:24]} 11... Nc6 {[%clk 0:02:12.3]} 12. Rc1 {[%clk 0:02:20.3]}
12... Rc8 {[%clk 0:01:55.3]} 13. Nec2 {[%clk 0:02:12.7]} 13... a6 {[%clk
0:01:47.6]} 14. Nxc6 {[%clk 0:02:04.3]} 14... bxc6 {[%clk 0:01:48.5]} 15. Bd4
{[%clk 0:01:58.1]} 15... e5 {[%clk 0:01:38.4]} 16. Be3 {[%clk 0:01:53.5]} 16...
Qc7 {[%clk 0:01:37.1]} 17. Qd2 {[%clk 0:01:47.9]} 17... Rfd8 {[%clk 0:01:30.3]}
18. Rfd1 {[%clk 0:01:47.4]} 18... Nf8 {[%clk 0:01:10.4]} 19. Qd3 {[%clk
0:01:30]} 19... Rb8 {[%clk 0:01:06.5]} 20. b3 {[%clk 0:01:23.7]} 20... Ne6
{[%clk 0:01:06.1]} 21. Qd2 {[%clk 0:01:02.8]} 21... a5 {[%clk 0:01:01.4]} 22.
Rb1 {[%clk 0:00:59.2]} 22... f5 {[%clk 0:00:53]} 23. f3 {[%clk 0:00:57.2]} 23...
fxe4 {[%clk 0:00:43.9]} 24. fxe4 {[%clk 0:00:57.2]} 24... Rd7 {[%clk 0:00:35.9]}
25. Rf1 {[%clk 0:00:47.5]} 25... Rf8 {[%clk 0:00:34.5]} 26. Rxf8+ {[%clk
0:00:44.7]} 26... Bxf8 {[%clk 0:00:35.4]} 27. Rf1 {[%clk 0:00:44]} 27... Rf7
{[%clk 0:00:35.8]} 28. Rxf7 {[%clk 0:00:43.8]} 28... Kxf7 {[%clk 0:00:31.3]} 29.
Qf2+ {[%clk 0:00:42.2]} 29... Kg8 {[%clk 0:00:28.3]} 30. Bb6 {[%clk 0:00:41]}
30... Qb7 {[%clk 0:00:20.1]} 31. Bxa5 {[%clk 0:00:33.4]} 31... d5 {[%clk
0:00:20]} 32. exd5 {[%clk 0:00:18.5]} 32... cxd5 {[%clk 0:00:20.9]} 33. Qb6
{[%clk 0:00:18.6]} 33... Bc5+ {[%clk 0:00:20.4]} 0-1

[Event "*** SCC Grand Prix: Titled Tuesday Blitz"]
[Site "Chess.com"]
[Date "2020.06.09"]
[Round "3"]
[White "FrenchMonster2002"]
[Black "Dinamo81"]
[Result "0-1"]
[WhiteElo "2415"]
[BlackElo "2626"]
[TimeControl "180+1"]
[EndTime "9:28:35 PDT"]
[Termination "Dinamo81 won by checkmate"]

1. e4 {[%clk 0:03:00.9]} 1... d5 {[%clk 0:02:58.3]} 2. exd5 {[%clk 0:03:01]}
2... Qxd5 {[%clk 0:02:59]} 3. Nf3 {[%clk 0:03:01.9]} 3... Bg4 {[%clk 0:02:57.9]}
4. Be2 {[%clk 0:03:02.4]} 4... Nc6 {[%clk 0:02:57.6]} 5. d4 {[%clk 0:03:02.8]}
5... O-O-O {[%clk 0:02:57.5]} 6. c4 {[%clk 0:03:03.2]} 6... Qf5 {[%clk
0:02:55.9]} 7. Be3 {[%clk 0:03:03.4]} 7... Bxf3 {[%clk 0:02:54]} 8. Bxf3 {[%clk
0:03:04.3]} 8... Nxd4 {[%clk 0:02:54.3]} 9. Bxd4 {[%clk 0:03:05.2]} 9... Qe6+
{[%clk 0:02:53.7]} 10. Be2 {[%clk 0:03:05.4]} 10... Qe4 {[%clk 0:02:53.4]} 11.
O-O {[%clk 0:03:06]} 11... Qxd4 {[%clk 0:02:53]} 12. Qa4 {[%clk 0:03:06.6]}
12... e6 {[%clk 0:02:42.4]} 13. Nc3 {[%clk 0:03:05.2]} 13... Bd6 {[%clk
0:02:38.8]} 14. Bf3 {[%clk 0:03:05.4]} 14... Ne7 {[%clk 0:01:58.3]} 15. Rfd1
{[%clk 0:03:00]} 15... Qb6 {[%clk 0:01:48.2]} 16. Rab1 {[%clk 0:01:50.4]} 16...
Bc5 {[%clk 0:01:17.5]} 17. Rxd8+ {[%clk 0:01:24]} 17... Rxd8 {[%clk 0:01:18.4]}
18. b4 {[%clk 0:01:14.3]} 18... Bxf2+ {[%clk 0:01:17.4]} 19. Kh1 {[%clk
0:01:05.6]} 19... Qe3 {[%clk 0:01:07.7]} 20. Nb5 {[%clk 0:00:39.6]} 20... a6
{[%clk 0:01:05.2]} 21. Na3 {[%clk 0:00:14.7]} 21... Qd2 {[%clk 0:00:10.8]} 22.
b5 {[%clk 0:00:09.7]} 22... a5 {[%clk 0:00:10.7]} 23. Rd1 {[%clk 0:00:03.4]}
23... Qb4 {[%clk 0:00:09.4]} 24. Qc2 {[%clk 0:00:02.1]} 24... Rxd1+ {[%clk
0:00:08.6]} 25. Bxd1 {[%clk 0:00:02.5]} 25... Qe1# {[%clk 0:00:07.9]} 0-1

[Event "*** SCC Grand Prix: Titled Tuesday Blitz"]
[Site "Chess.com"]
[Date "2020.06.09"]
[Round "3"]
[White "Funo09"]
[Black "DenishevM"]
[Result "1-0"]
[WhiteElo "2812"]
[BlackElo "2548"]
[TimeControl "180+1"]
[EndTime "9:28:38 PDT"]
[Termination "Funo09 won on time"]

1. e4 {[%clk 0:03:00.9]} 1... c5 {[%clk 0:02:59.2]} 2. Nc3 {[%clk 0:03:00.8]}
2... e6 {[%clk 0:02:58.3]} 3. f4 {[%clk 0:03:00.6]} 3... d5 {[%clk 0:02:58]} 4.
Nf3 {[%clk 0:03:01.5]} 4... Nc6 {[%clk 0:02:56.9]} 5. Bb5 {[%clk 0:03:00.7]}
5... Ne7 {[%clk 0:02:37.4]} 6. Qe2 {[%clk 0:02:59.4]} 6... d4 {[%clk 0:02:34.3]}
7. Nb1 {[%clk 0:02:54.5]} 7... a6 {[%clk 0:02:34.1]} 8. Bxc6+ {[%clk 0:02:54.4]}
8... Nxc6 {[%clk 0:02:35]} 9. O-O {[%clk 0:02:53.1]} 9... Be7 {[%clk 0:02:32.4]}
10. d3 {[%clk 0:02:52.6]} 10... b5 {[%clk 0:02:30.3]} 11. Nbd2 {[%clk
0:02:30.9]} 11... Bb7 {[%clk 0:02:27.7]} 12. Rf2 {[%clk 0:02:25.6]} 12... Qb6
{[%clk 0:02:21]} 13. Nf1 {[%clk 0:02:20.9]} 13... h6 {[%clk 0:02:18.5]} 14. Ng3
{[%clk 0:02:19]} 14... O-O-O {[%clk 0:02:17.5]} 15. a4 {[%clk 0:02:18.4]} 15...
Nb4 {[%clk 0:02:07]} 16. f5 {[%clk 0:02:06.7]} 16... Bd6 {[%clk 0:01:28.9]} 17.
axb5 {[%clk 0:01:44.8]} 17... axb5 {[%clk 0:01:28.6]} 18. Bd2 {[%clk 0:01:37.1]}
18... Nc6 {[%clk 0:01:04.5]} 19. fxe6 {[%clk 0:01:22.1]} 19... fxe6 {[%clk
0:01:03.6]} 20. c3 {[%clk 0:01:20.5]} 20... Bxg3 {[%clk 0:01:00.3]} 21. hxg3
{[%clk 0:01:20.2]} 21... e5 {[%clk 0:01:00.7]} 22. cxd4 {[%clk 0:01:14.9]} 22...
exd4 {[%clk 0:00:54.8]} 23. Nh4 {[%clk 0:01:08.9]} 23... g5 {[%clk 0:00:45.9]}
24. Nf5 {[%clk 0:01:09.1]} 24... b4 {[%clk 0:00:39.1]} 25. g4 {[%clk 0:00:41.6]}
25... Ne5 {[%clk 0:00:31.7]} 26. Ne7+ {[%clk 0:00:40]} 26... Kb8 {[%clk
0:00:30.1]} 27. Rf5 {[%clk 0:00:39.7]} 27... Qe6 {[%clk 0:00:23.8]} 28. Be1
{[%clk 0:00:39.7]} 28... Ng6 {[%clk 0:00:06.4]} 29. Bg3+ {[%clk 0:00:37.2]}
29... Nf4 {[%clk 0:00:06.5]} 30. Rxf4 {[%clk 0:00:37.6]} 30... gxf4 {[%clk
0:00:05]} 31. Bxf4+ {[%clk 0:00:38.5]} 31... Rd6 {[%clk 0:00:05.7]} 32. Nf5
{[%clk 0:00:37.7]} 32... Rd8 {[%clk 0:00:05]} 33. Qc2 {[%clk 0:00:34.9]} 33...
c4 {[%clk 0:00:02.9]} 34. Qxc4 {[%clk 0:00:32.7]} 34... Qxc4 {[%clk 0:00:02.7]}
35. dxc4 {[%clk 0:00:33.6]} 35... Bxe4 {[%clk 0:00:02.1]} 36. Nxd6 {[%clk
0:00:33.1]} 1-0

[Event "*** SCC Grand Prix: Titled Tuesday Blitz"]
[Site "Chess.com"]
[Date "2020.06.09"]
[Round "3"]
[White "manmanlai1"]
[Black "TregubovP"]
[Result "1-0"]
[WhiteElo "2390"]
[BlackElo "2562"]
[TimeControl "180+1"]
[EndTime "9:28:38 PDT"]
[Termination "manmanlai1 won by resignation"]

1. e4 {[%clk 0:03:00.9]} 1... e6 {[%clk 0:02:59.9]} 2. d4 {[%clk 0:03:00.1]}
2... d5 {[%clk 0:02:59.9]} 3. exd5 {[%clk 0:02:59]} 3... exd5 {[%clk 0:02:59.6]}
4. Bd3 {[%clk 0:02:59.6]} 4... Bd6 {[%clk 0:02:56.5]} 5. Qf3 {[%clk 0:02:58.8]}
5... Ne7 {[%clk 0:02:54.7]} 6. Ne2 {[%clk 0:02:57.6]} 6... Nbc6 {[%clk
0:02:53.8]} 7. c3 {[%clk 0:02:56.9]} 7... Be6 {[%clk 0:02:52]} 8. Bf4 {[%clk
0:02:56.8]} 8... Qd7 {[%clk 0:02:49.7]} 9. Bxd6 {[%clk 0:02:56.4]} 9... Qxd6
{[%clk 0:02:49.4]} 10. Nd2 {[%clk 0:02:56.1]} 10... O-O-O {[%clk 0:02:47.2]} 11.
h3 {[%clk 0:02:49.9]} 11... g6 {[%clk 0:02:46.1]} 12. Ng3 {[%clk 0:02:34.1]}
12... h5 {[%clk 0:02:44.6]} 13. O-O-O {[%clk 0:02:31.9]} 13... h4 {[%clk
0:02:44.6]} 14. Ngf1 {[%clk 0:02:31.8]} 14... Bf5 {[%clk 0:02:43.9]} 15. Nb3
{[%clk 0:02:31.8]} 15... Bxd3 {[%clk 0:02:35.5]} 16. Rxd3 {[%clk 0:02:30.8]}
16... Nf5 {[%clk 0:02:31.7]} 17. Ne3 {[%clk 0:02:30.1]} 17... Nxe3 {[%clk
0:02:26.3]} 18. Rxe3 {[%clk 0:02:31]} 18... Rde8 {[%clk 0:01:52.1]} 19. Rhe1
{[%clk 0:02:27.3]} 19... Rxe3 {[%clk 0:01:51.2]} 20. Rxe3 {[%clk 0:02:28.2]}
20... Rf8 {[%clk 0:01:44.7]} 21. Qg4+ {[%clk 0:02:16]} 21... Qd7 {[%clk
0:01:34.4]} 22. Qxh4 {[%clk 0:02:13]} 22... b6 {[%clk 0:01:34.9]} 23. Qg3 {[%clk
0:02:06.9]} 23... Ne7 {[%clk 0:01:31.5]} 24. Qf3 {[%clk 0:02:05.2]} 24... Nf5
{[%clk 0:01:30.9]} 25. Re2 {[%clk 0:02:00.5]} 25... c6 {[%clk 0:01:30.3]} 26.
Nd2 {[%clk 0:01:52.9]} 26... Kb7 {[%clk 0:01:19.2]} 27. g3 {[%clk 0:01:49.5]}
27... Nd6 {[%clk 0:01:15.3]} 28. h4 {[%clk 0:01:49.6]} 28... f5 {[%clk
0:01:09.8]} 29. Qf4 {[%clk 0:01:45.9]} 29... Rf7 {[%clk 0:00:55.2]} 30. Nf3
{[%clk 0:01:42.2]} 30... Rg7 {[%clk 0:00:44.5]} 31. Ne5 {[%clk 0:01:35.9]} 31...
Qc7 {[%clk 0:00:44.5]} 32. f3 {[%clk 0:01:33.8]} 32... c5 {[%clk 0:00:41.3]} 33.
Nd3 {[%clk 0:01:24]} 33... c4 {[%clk 0:00:36.8]} 34. Nb4 {[%clk 0:01:15.2]}
34... Nb5 {[%clk 0:00:17.2]} 35. Nxd5 {[%clk 0:01:10.7]} 35... Qxf4+ {[%clk
0:00:15.1]} 36. Nxf4 {[%clk 0:01:10]} 36... Nc7 {[%clk 0:00:15.7]} 37. Ne6
{[%clk 0:01:05.1]} 37... Nxe6 {[%clk 0:00:13.6]} 38. Rxe6 {[%clk 0:01:06]} 38...
g5 {[%clk 0:00:14.1]} 39. h5 {[%clk 0:01:05.3]} 39... g4 {[%clk 0:00:11.1]} 40.
f4 {[%clk 0:01:02]} 40... Kc7 {[%clk 0:00:10.5]} 41. h6 {[%clk 0:01:02.1]} 41...
Rh7 {[%clk 0:00:10.7]} 42. Rg6 {[%clk 0:01:00.9]} 42... Kd8 {[%clk 0:00:10.9]}
43. d5 {[%clk 0:00:42]} 1-0

[Event "*** SCC Grand Prix: Titled Tuesday Blitz"]
[Site "Chess.com"]
[Date "2020.06.09"]
[Round "3"]
[White "Moon_stone123"]
[Black "nonsopolo1"]
[Result "1-0"]
[WhiteElo "2457"]
[BlackElo "2256"]
[TimeControl "180+1"]
[EndTime "9:28:38 PDT"]
[Termination "Moon_stone123 won on time"]

1. e4 {[%clk 0:03:00.9]} 1... g6 {[%clk 0:02:56.7]} 2. d4 {[%clk 0:03:00.7]}
2... c6 {[%clk 0:02:56]} 3. Nc3 {[%clk 0:02:55]} 3... Bg7 {[%clk 0:02:46.7]} 4.
Nf3 {[%clk 0:02:54.5]} 4... d6 {[%clk 0:02:44.8]} 5. a4 {[%clk 0:02:47.5]} 5...
Bg4 {[%clk 0:02:41.3]} 6. Bc4 {[%clk 0:02:40.6]} 6... e6 {[%clk 0:02:20.2]} 7.
Be2 {[%clk 0:02:34.5]} 7... Ne7 {[%clk 0:02:17.7]} 8. O-O {[%clk 0:02:33.9]}
8... O-O {[%clk 0:02:16.9]} 9. h3 {[%clk 0:02:29.8]} 9... Bxf3 {[%clk
0:02:14.2]} 10. Bxf3 {[%clk 0:02:30.7]} 10... e5 {[%clk 0:02:12.7]} 11. Be3
{[%clk 0:02:16.2]} 11... Nd7 {[%clk 0:02:08.7]} 12. Qd2 {[%clk 0:02:16.1]} 12...
f5 {[%clk 0:02:02.5]} 13. dxe5 {[%clk 0:02:11.9]} 13... Nxe5 {[%clk 0:01:45.6]}
14. Be2 {[%clk 0:02:09.9]} 14... fxe4 {[%clk 0:01:36.6]} 15. Nxe4 {[%clk
0:02:10.8]} 15... Nd5 {[%clk 0:01:33.4]} 16. Bg5 {[%clk 0:01:47.5]} 16... Qc7
{[%clk 0:01:31.4]} 17. c4 {[%clk 0:01:45.6]} 17... Nf6 {[%clk 0:01:24]} 18. Qxd6
{[%clk 0:01:34.9]} 18... Qxd6 {[%clk 0:01:19.8]} 19. Nxd6 {[%clk 0:01:35.8]}
19... Rad8 {[%clk 0:01:03]} 20. Rad1 {[%clk 0:01:23.9]} 20... h6 {[%clk
0:00:58.3]} 21. Be3 {[%clk 0:01:21.3]} 21... b6 {[%clk 0:00:56.9]} 22. a5 {[%clk
0:01:19.1]} 22... c5 {[%clk 0:00:52.3]} 23. a6 {[%clk 0:01:12.7]} 23... Rd7
{[%clk 0:00:27.1]} 24. Nb5 {[%clk 0:01:11.2]} 24... Rfd8 {[%clk 0:00:24.8]} 25.
Rxd7 {[%clk 0:01:10.3]} 25... Rxd7 {[%clk 0:00:24.4]} 26. b3 {[%clk 0:01:03.6]}
26... Nc6 {[%clk 0:00:16.7]} 27. Bf3 {[%clk 0:00:58.7]} 27... Nb4 {[%clk
0:00:15.3]} 28. Bb7 {[%clk 0:00:58.5]} 28... Rd3 {[%clk 0:00:12]} 29. Nxa7
{[%clk 0:00:55.6]} 29... Rxb3 {[%clk 0:00:10.1]} 30. Nc8 {[%clk 0:00:50.5]}
30... Ra3 {[%clk 0:00:08.4]} 31. a7 {[%clk 0:00:49.8]} 1-0